bitfinex-derivatives/quotes_BNBF0:USTF0_20250807
["timestamp","ask_amount","ask_price","bid_price","bid_amount"]
[1754534931140,0.87162477,769.05,768.01,0.75]
[1754534931141,0.87162477,769.06,768.25,0.87497733]
[1754534931341,0.87162477,769.09,768.23,0.87497733]
[1754534931643,0.87162477,769.09,768.22,0.87497733]
[1754534932139,1.09798979,769.11,768.21,0.87497733]
[1754534932844,1.09798979,769.11,768.01,0.75]
[1754534932845,0.87162477,769.08,768.23,0.87497733]
[1754534933341,0.87162477,769.09,768.22,0.87497733]
[1754534934244,0.87162477,769.1,768.21,0.87497733]
[1754534934444,0.87162477,769.01,768.16,0.87497733]
[1754534934739,0.87162477,769.0,768.15,0.87497733]
[1754534935142,0.87162477,769.0,768.14,0.87497733]
[1754534935440,0.87162477,768.99,768.13,0.87497733]
[1754534936243,0.87162477,768.98,768.12,0.87497733]
[1754534937241,0.87162477,768.99,768.11,0.87497733]
[1754534937540,0.87162477,768.93,768.05,0.87497733]
[1754534937943,0.87162477,768.92,768.06,0.87497733]
[1754534939342,0.87162477,768.92,768.05,0.87497733]
[1754534941743,0.87162477,768.93,768.06,0.87497733]
[1754534941942,0.87162477,768.93,768.05,0.87497733]
[1754534942342,0.87162477,768.93,768.06,0.87497733]
[1754534942746,0.87162477,768.91,768.07,0.87497733]
[1754534942947,0.87162477,768.93,768.1,0.87497733]
[1754534943249,0.87162477,768.94,768.09,0.87497733]
[1754534943544,0.87162477,768.95,768.08,0.87497733]
[1754534943748,0.87162477,768.96,768.09,0.87497733]
[1754534945245,0.87162477,768.98,768.08,0.87497733]
[1754534946147,0.87162477,769.02,768.11,0.87497733]
[1754534946752,0.87162477,768.99,768.08,0.87497733]
[1754534947654,0.87162477,768.99,768.09,0.87497733]
[1754534947854,0.87162477,769.0,768.1,0.87497733]
[1754534948050,0.87162477,768.95,768.05,0.87497733]
[1754534948254,0.87162477,768.95,768.01,0.75]
[1754534948255,0.87162477,768.94,768.04,0.87497733]
[1754534949255,0.22636502,769.11,768.05,0.87497733]
[1754534949256,0.87162477,768.92,768.05,0.87497733]
[1754534949953,0.87162477,768.91,768.05,0.87497733]
[1754534950152,0.87162477,768.91,768.06,0.87497733]
[1754534950457,0.87162477,768.94,768.04,0.87497733]
[1754534950653,0.87162477,768.94,768.03,0.87497733]
[1754534950852,0.87162477,768.93,768.03,0.87497733]
[1754534952252,0.87162477,768.93,768.04,0.87497733]
[1754534952557,0.87162477,768.92,768.05,0.87497733]
[1754534953856,0.87162477,768.94,768.07,0.87497733]
[1754534955059,0.87162477,768.91,768.08,0.87497733]
[1754534956558,2.8948051,769.94,768.06,0.87497733]
[1754534956559,0.87162477,768.94,768.06,0.87497733]
[1754534960365,0.87162477,768.92,768.08,0.87497733]
[1754534962167,0.87162477,768.94,768.07,0.87497733]
[1754534963168,0.87162477,768.93,768.07,0.87497733]
[1754534964169,0.87162477,768.94,768.07,0.87497733]
[1754534966071,0.22639742,768.9,768.07,0.87497733]
[1754534966270,0.22639742,768.9,768.09,0.87497733]
[1754534968172,1.09802219,768.9,768.1,0.87497733]
[1754534971472,0.87162477,768.89,768.1,0.87497733]
[1754534971872,0.87162477,768.89,768.11,0.87497733]
[1754534972069,0.87162477,768.84,768.14,0.87497733]
[1754534974977,0.87162477,768.84,768.15,0.854]
[1754534975177,0.87162477,768.82,768.16,0.87497733]
[1754534977178,0.87162477,768.81,768.16,0.87497733]
[1754534977378,0.87162477,768.81,768.17,0.87497733]
[1754534978676,0.87162477,768.84,768.19,0.87497733]
[1754534978979,0.87162477,768.87,768.22,0.87497733]
[1754534979180,0.87162477,768.86,768.22,0.87497733]
[1754534979675,0.87162477,768.85,768.23,0.87497733]
[1754534980277,0.87162477,768.84,768.24,0.87497733]
[1754534981781,0.87162477,768.83,768.24,0.87497733]
[1754534982280,0.87162477,768.83,768.25,0.87497733]
[1754534983184,0.22639742,768.9,768.15,0.854]
[1754534983185,0.87162477,768.81,768.26,0.87497733]
[1754534983885,0.22639742,768.9,768.17,0.87497733]
[1754534984286,0.22639742,768.9,768.18,0.87497733]
[1754534987789,0.22639742,768.9,768.17,0.87497733]
[1754534990190,0.22639742,768.9,768.18,0.87497733]
[1754534991289,0.22639742,768.9,768.19,0.818]
[1754534992191,0.22639742,768.9,768.19,1.69297733]
[1754534993289,0.22639742,768.9,768.2,0.87497733]
[1754534993792,0.87162477,768.87,768.23,0.87497733]
[1754534994187,0.87162477,768.86,768.24,0.87497733]
[1754534994591,0.87162477,768.87,768.24,0.87497733]
[1754534997492,0.87162477,768.82,768.27,0.87497733]
[1754534998288,0.87162477,768.82,768.28,0.87497733]
[1754534998693,0.87162477,768.82,768.27,0.87497733]
[1754534998893,0.87162477,768.8,768.26,0.87497733]
[1754534999193,0.87162477,768.81,768.26,0.87497733]
[1754534999890,0.87162477,768.83,768.24,0.87497733]
[1754535000494,0.87162477,768.78,768.22,0.87497733]
[1754535000788,0.87162477,768.74,768.19,0.818]
[1754535000991,0.87398377,768.74,768.19,0.818]
[1754535003595,0.87398377,768.75,768.19,0.818]
[1754535009802,0.87398377,768.74,768.19,0.818]
[1754535010301,0.87398377,768.7,768.19,1.69549379]
[1754535011796,0.87398377,768.74,768.19,0.818]
[1754535013097,0.22639742,768.9,768.19,0.818]
[1754535013098,0.87398377,768.76,768.19,0.818]
[1754535013506,0.87398377,768.77,768.2,0.87749379]
[1754535017303,0.87398377,768.77,768.21,0.867]
[1754535021709,0.22639742,768.9,768.21,0.867]
[1754535021710,0.87398377,768.75,768.22,0.87749379]
[1754535022005,0.87398377,768.75,768.21,1.74449379]
[1754535022205,0.87398377,768.76,768.21,1.74449379]
[1754535022610,0.87398377,768.75,768.21,1.74449379]
[1754535023306,0.87398377,768.81,768.21,1.74449379]
[1754535023512,0.87398377,768.82,768.28,0.87749379]
[1754535023706,0.87398377,768.82,768.29,0.87749379]
[1754535025311,0.87398377,768.83,768.29,0.87749379]
[1754535027715,0.87398377,768.82,768.3,0.87749379]
[1754535029212,0.87398377,768.82,768.29,0.87749379]
[1754535030119,0.87398377,768.81,768.3,0.87749379]
[1754535032022,0.87398377,768.8,768.3,0.87749379]
[1754535035421,0.87398377,768.83,768.29,0.87749379]
[1754535037528,0.87398377,768.83,768.28,0.87749379]
[1754535038023,0.87398377,768.84,768.28,0.87749379]
[1754535039429,0.87398377,768.84,768.21,0.867]
[1754535039430,0.87398377,768.83,768.21,0.867]
[1754535040825,0.87398377,768.82,768.21,0.867]
[1754535045535,0.87398377,768.81,768.21,1.74449379]
[1754535046034,0.22639742,768.9,768.21,0.867]
[1754535046732,0.87398377,768.81,768.21,0.867]
[1754535047132,0.87398377,768.8,768.21,0.867]
[1754535047336,0.87398377,768.82,768.21,0.867]
[1754535048236,0.87398377,768.83,768.21,0.867]
[1754535049235,0.87398377,768.84,768.21,0.867]
[1754535050332,0.87398377,768.85,768.21,0.867]
[1754535051433,0.87398377,768.81,768.21,0.867]
[1754535052332,0.87398377,768.82,768.21,0.867]
[1754535054135,0.87398377,768.81,768.21,0.867]
[1754535054435,0.87398377,768.82,768.21,0.867]
[1754535055741,0.87398377,768.74,768.21,0.867]
[1754535057639,0.87398377,768.66,768.21,0.867]
[1754535057842,0.87398377,768.64,768.21,0.867]
[1754535058338,0.87398377,768.65,768.21,0.867]
[1754535058539,0.87398377,768.82,768.21,0.867]
[1754535060642,0.87398377,768.84,768.21,0.867]
[1754535061143,0.22639742,768.9,768.21,0.867]
[1754535063844,1.10038119,768.9,768.21,0.867]
[1754535064249,0.22639742,768.9,768.21,0.867]
[1754535067050,0.87398377,768.79,768.21,0.867]
[1754535067346,0.87398377,768.8,768.21,0.867]
[1754535068154,0.87398377,768.84,768.21,0.867]
[1754535068354,0.87398377,768.8,768.21,0.867]
[1754535069357,0.87398377,768.79,768.21,0.867]
[1754535069961,0.87398377,768.82,768.21,0.867]
[1754535070757,0.22639742,768.9,768.21,0.867]
[1754535070758,0.87398377,768.85,768.21,0.867]
[1754535073463,0.87398377,768.85,768.05,0.87749379]
[1754535075259,0.87398377,768.84,768.05,0.87749379]
[1754535076064,0.87398377,768.82,768.06,0.87749379]
[1754535076861,0.87398377,768.82,768.07,0.87749379]
[1754535077061,0.87398377,768.82,768.07,1.90149379]
[1754535078060,0.87398377,768.83,768.07,1.024]
[1754535079263,0.87398377,768.82,768.07,1.024]
[1754535079466,0.87398377,768.82,768.07,1.90149379]
[1754535080565,0.87398377,768.81,768.08,0.87749379]
[1754535081070,0.87398377,768.8,768.08,0.87749379]
[1754535082170,0.87398377,768.89,768.07,1.024]
[1754535087175,0.87398377,768.88,768.07,1.024]
[1754535088376,0.87398377,768.86,768.07,1.024]
[1754535089184,0.87398377,768.87,768.07,1.024]
[1754535091482,0.87398377,768.86,768.07,1.024]
[1754535092681,0.87398377,768.87,768.07,1.024]
[1754535092885,0.87398377,768.86,768.07,1.024]
[1754535097188,0.87398377,768.85,768.07,1.024]
[1754535097388,0.87398377,768.84,768.07,1.024]
[1754535097586,0.87398377,768.8,768.07,1.024]
[1754535097988,0.87398377,768.79,768.07,1.024]
[1754535098186,0.87398377,768.78,768.07,1.024]
[1754535098487,0.87398377,768.82,768.07,1.024]
[1754535099089,0.22639742,768.9,768.07,1.024]
[1754535099090,0.87398377,768.8,768.07,1.024]
[1754535099289,0.87398377,768.76,768.07,1.024]
[1754535101292,0.87398377,768.75,768.07,1.024]
[1754535102591,0.87218372,768.75,768.07,1.024]
[1754535103389,0.87218372,768.74,768.07,1.024]
[1754535108293,0.87218372,768.73,768.07,1.024]
[1754535108497,0.87218372,768.68,768.07,1.024]
[1754535108793,0.87218372,768.67,768.07,1.024]
[1754535108991,0.87218372,768.67,768.0,0.87578871]
[1754535109595,0.87218372,768.69,767.99,0.87578871]
[1754535109995,0.22639742,768.9,767.98,0.87578871]
[1754535109996,0.87218372,768.71,767.98,0.87578871]
[1754535110198,0.87218372,768.7,767.98,0.87578871]
[1754535111295,0.87218372,768.7,767.99,0.87578871]
[1754535111900,0.87218372,768.7,768.0,0.99]
[1754535112101,0.87218372,768.65,768.0,0.99]
[1754535112298,0.87218372,768.64,768.0,0.99]
[1754535112501,0.87218372,768.6,768.0,0.99]
[1754535116204,1.157922,768.76,768.0,0.99]
[1754535116205,0.87218372,768.59,768.0,0.99]
[1754535116402,0.87218372,768.6,768.0,0.99]
[1754535117203,0.87218372,768.59,768.0,0.99]
[1754535117407,0.87218372,768.6,768.0,0.99]
[1754535119209,0.87218372,768.59,768.0,0.99]
[1754535119404,0.87218372,768.58,768.0,0.99]
[1754535119809,0.87218372,768.57,768.0,0.99]
[1754535121811,1.157922,768.72,768.0,0.99]
[1754535122011,0.87206711,768.54,768.0,0.99]
[1754535122307,0.87206711,768.53,768.0,0.99]
[1754535123311,1.157922,768.66,768.0,0.99]
[1754535123312,0.87206711,768.54,768.0,0.99]
[1754535127312,0.87206711,768.55,768.0,0.99]
[1754535128518,0.87206711,768.69,768.0,0.99]
[1754535129116,0.87206711,768.6,768.0,0.99]
[1754535129517,0.87206711,768.62,768.0,0.99]
[1754535131317,0.87206711,768.63,768.0,0.99]
[1754535133319,0.87206711,768.64,768.0,0.99]
[1754535137426,0.87206711,768.65,768.0,0.99]
[1754535138525,0.87206711,768.6,768.0,0.99]
[1754535139026,0.87206711,768.59,768.0,0.99]
[1754535139428,0.87206711,768.57,768.0,0.99]
[1754535139725,0.87206711,768.55,768.0,0.99]
[1754535142030,0.87206711,768.54,768.0,0.99]
[1754535143128,0.87206711,768.55,768.0,0.99]
[1754535144430,0.87206711,768.63,768.0,0.99]
[1754535146833,0.87206711,768.62,768.0,0.99]
[1754535147332,0.87206711,768.61,768.0,0.99]
[1754535147836,1.157922,768.83,768.0,0.99]
[1754535147837,0.87206711,768.62,768.0,0.99]
[1754535149539,0.87206711,768.61,768.0,0.99]
[1754535153039,0.87206711,768.6,768.0,0.99]
[1754535154240,0.22639742,768.9,768.0,0.99]
[1754535154241,0.87206711,768.52,768.0,0.99]
[1754535154440,0.87206711,768.51,768.0,0.99]
[1754535156742,0.87206711,768.53,768.0,0.99]
[1754535157441,0.87206711,768.52,768.0,0.99]
[1754535158042,0.87206711,768.51,768.0,0.99]
[1754535159039,0.87206711,768.52,768.0,0.99]
[1754535159337,0.87206711,768.57,768.0,0.99]
[1754535159942,0.87206711,768.58,768.0,0.99]
[1754535160338,0.87206711,768.57,768.0,0.99]
[1754535160944,0.87206711,768.62,768.0,0.99]
[1754535161642,0.87206711,768.61,768.0,0.99]
[1754535163045,0.87206711,768.59,768.0,0.99]
[1754535164745,0.87206711,768.56,768.0,0.99]
[1754535165446,0.87206711,768.57,768.0,0.99]
[1754535166545,0.87206711,768.59,768.0,0.99]
[1754535167348,0.87206711,768.58,768.0,0.99]
[1754535169449,1.09853672,768.63,768.0,0.99]
[1754535169749,0.87206711,768.61,768.0,0.99]
[1754535170951,0.87206711,768.61,767.87,0.87624443]
[1754535171552,0.87206711,768.6,767.87,0.87624443]
[1754535172352,0.87206711,768.6,767.88,0.87624443]
[1754535174956,0.87206711,768.6,767.89,1.028]
[1754535175157,0.87206711,768.59,767.89,1.028]
[1754535175656,0.87206711,768.6,767.89,1.028]
[1754535176357,0.87206711,768.59,767.89,1.028]
[1754535179360,0.87206711,768.54,767.92,0.87624443]
[1754535181761,0.87206711,768.54,767.89,1.028]
[1754535181964,0.87218006,768.54,767.89,1.028]
[1754535183865,0.87218006,768.53,767.89,1.028]
[1754535185662,0.87218006,768.52,767.89,1.028]
[1754535186367,0.87218006,768.53,767.89,1.028]
[1754535186569,0.87218006,768.51,767.89,1.90499635]
[1754535188363,0.87218006,768.5,767.89,1.90499635]
[1754535191267,0.87218006,768.5,767.9,0.87699635]
[1754535191671,0.22646961,768.63,767.93,0.87699635]
[1754535191672,0.87218006,768.46,767.93,0.87699635]
[1754535192768,1.157922,768.58,767.93,0.87699635]
[1754535192769,0.87218006,768.45,767.93,0.87699635]
[1754535194672,0.87218006,768.5,767.9,0.87699635]
[1754535196580,0.87218006,768.49,767.9,0.87699635]
[1754535197875,0.87218006,768.52,767.89,1.90499635]
[1754535198277,0.87218006,768.51,767.89,1.90499635]
[1754535198678,0.87218006,768.52,767.89,1.90499635]
[1754535198983,0.87218006,768.51,767.89,1.90499635]
[1754535201382,0.87218006,768.56,767.89,1.028]
[1754535204383,0.87218006,768.55,767.89,1.028]
[1754535204782,0.87218006,768.47,767.89,1.028]
[1754535205282,0.87218006,768.48,767.89,1.028]
[1754535205584,0.87218006,768.47,767.89,1.028]
[1754535205886,0.87218006,768.41,767.89,1.028]
[1754535206084,0.87218006,768.34,767.89,1.028]
[1754535206387,0.87218006,768.35,767.89,1.028]
[1754535207082,0.87218006,768.34,767.89,1.028]
[1754535207387,0.87218006,768.36,767.89,1.028]
[1754535207783,0.87218006,768.37,767.89,1.028]
[1754535208288,0.87218006,768.38,767.89,1.028]
[1754535208884,0.87218006,768.37,767.89,1.028]
[1754535209589,0.87218006,768.38,767.89,1.028]
[1754535210890,0.87218006,768.33,767.89,1.028]
[1754535211389,1.157922,768.5,767.89,1.028]
[1754535211390,0.87218006,768.34,767.89,1.028]
[1754535213290,0.87218006,768.35,767.89,1.028]
[1754535213990,0.87218006,768.35,767.63,1.10351387]
[1754535215293,0.87218006,768.36,767.63,0.22651752]
[1754535215992,0.87218006,768.35,767.63,0.22651752]
[1754535216393,0.87218006,768.34,767.63,0.22651752]
[1754535217091,0.87218006,768.31,767.63,0.22651752]
[1754535217590,0.87218006,768.32,767.63,0.22651752]
[1754535217792,0.87218006,768.3,767.63,0.22651752]
[1754535217993,0.87218006,768.3,767.64,0.832]
[1754535218490,0.87218006,768.31,767.64,0.832]
[1754535219393,0.87218006,768.32,767.64,0.832]
[1754535219993,1.157922,768.47,767.64,0.832]
[1754535219994,0.87218006,768.31,767.64,0.832]
[1754535220290,0.87218006,768.32,767.64,0.832]
[1754535220696,0.87218006,768.31,767.64,0.832]
[1754535220995,0.87218006,768.32,767.64,0.832]
[1754535221695,0.87218006,768.33,767.64,0.832]
[1754535221891,0.87218006,768.32,767.64,0.832]
[1754535222392,0.87218006,768.34,767.64,0.832]
[1754535222892,0.87218006,768.3,767.64,0.832]
[1754535223097,0.87218006,768.31,767.64,0.832]
[1754535223295,0.87218006,768.32,767.64,0.832]
[1754535224494,0.87218006,768.33,767.64,0.832]
[1754535226999,0.87218006,768.32,767.64,0.832]
[1754535229401,0.87218006,768.33,767.64,0.832]
[1754535230201,0.87218006,768.32,767.64,0.832]
[1754535230398,0.87218006,768.33,767.64,0.832]
[1754535230802,0.87218006,768.32,767.64,0.832]
[1754535232299,0.87218006,768.3,767.64,0.832]
[1754535232905,0.87218006,768.31,767.64,0.832]
[1754535233101,0.87218006,768.28,767.64,0.832]
[1754535239612,0.87218006,768.29,767.64,0.832]
[1754535242711,0.87218006,768.27,767.64,0.832]
[1754535243016,0.87218006,768.28,767.64,0.832]
[1754535243217,0.87218006,768.27,767.64,0.832]
[1754535245713,0.87218006,768.31,767.64,0.832]
[1754535246314,0.87218006,768.3,767.64,0.832]
[1754535246516,0.87218006,768.31,767.64,0.832]
[1754535247316,0.87218006,768.3,767.64,0.832]
[1754535248220,0.87218006,768.33,767.64,0.832]
[1754535248424,0.87218006,768.32,767.64,0.832]
[1754535249921,0.87218006,768.3,767.64,0.832]
[1754535251716,0.87218006,768.34,767.64,0.832]
[1754535251921,0.87218006,768.38,767.64,0.832]
[1754535252422,0.87218006,768.37,767.64,0.832]
[1754535252721,0.87218006,768.36,767.64,0.832]
[1754535253129,0.87218006,768.39,767.64,0.832]
[1754535253318,0.87218006,768.28,767.64,0.832]
[1754535253917,0.87218006,768.32,767.64,0.832]
[1754535254419,0.87218006,768.34,767.64,0.832]
[1754535255323,0.87218006,768.37,767.64,0.832]
[1754535255822,0.87218006,768.39,767.64,0.832]
[1754535256018,0.87218006,768.57,767.64,0.832]
[1754535257323,0.87218006,768.55,767.64,0.832]
[1754535259321,0.87218006,768.54,767.64,0.832]
[1754535259619,0.87218006,768.53,767.64,0.832]
[1754535260420,0.87218006,768.51,767.64,0.832]
[1754535260824,0.87218006,768.49,767.64,0.832]
[1754535261021,0.87218006,768.48,767.64,0.832]
[1754535261425,0.87218006,768.47,767.64,0.832]
[1754535261725,0.87218006,768.43,767.64,0.832]
[1754535262026,0.87218006,768.46,767.64,0.832]
[1754535262226,0.87218006,768.44,767.64,0.832]
[1754535262425,0.87218006,768.43,767.64,0.832]
[1754535263125,0.87218006,768.4,767.64,0.832]
[1754535263327,0.87218006,768.18,767.64,0.832]
[1754535263924,0.87218006,768.17,767.64,0.832]
[1754535264327,0.87218006,768.16,767.64,0.832]
[1754535264527,0.87218006,768.17,767.64,0.832]
[1754535267331,0.87218006,768.1,767.64,0.832]
[1754535267531,0.87218006,768.11,767.64,0.832]
[1754535267936,0.87218006,768.06,767.64,0.832]
[1754535268533,0.87218006,768.05,767.64,0.832]
[1754535270537,0.87218006,768.06,767.64,0.832]
[1754535270834,0.87218006,768.05,767.64,0.832]
[1754535271046,0.87218006,767.99,767.64,0.832]
[1754535271245,0.87218006,767.96,767.64,0.832]
[1754535271445,0.87218006,767.99,767.64,0.832]
[1754535271638,0.87218006,768.0,767.64,0.832]
[1754535271838,0.87218006,767.87,767.64,0.832]
[1754535272138,0.87218006,767.88,767.64,0.832]
[1754535272335,0.87218006,767.87,767.64,0.832]
[1754535272537,0.87218006,767.9,767.64,0.832]
[1754535273536,1.157922,768.1,767.64,0.832]
[1754535273537,0.87218006,767.83,767.64,0.832]
[1754535273948,0.87218006,767.81,767.64,0.832]
[1754535274135,0.87218006,767.81,766.85,0.22669311]
[1754535274334,0.87218006,767.73,766.85,0.22669311]
[1754535274638,0.87218006,767.76,766.85,0.22669311]
[1754535274835,0.87218006,767.75,766.85,0.22669311]
[1754535275038,0.87218006,767.76,766.85,0.22669311]
[1754535275235,0.87218006,767.91,766.91,0.87699635]
[1754535275436,0.87218006,767.92,766.89,0.87699635]
[1754535275637,0.87218006,767.91,766.87,0.87699635]
[1754535276441,0.87218006,767.92,766.88,0.881]
[1754535276637,0.87218006,767.93,766.88,1.75799635]
[1754535276937,0.22646961,768.63,766.97,0.87699635]
[1754535276938,0.87218006,768.02,766.97,0.87699635]
[1754535277137,0.87218006,768.12,766.9,0.87699635]
[1754535277443,0.87218006,768.08,766.88,0.881]
[1754535277835,0.87218006,768.09,766.88,0.881]
[1754535278036,0.87218006,768.03,766.98,0.87699635]
[1754535278336,0.87218006,768.03,767.08,0.87699635]
[1754535279238,0.87218006,768.01,767.07,0.87699635]
[1754535280639,0.87218006,768.02,767.08,0.87699635]
[1754535280939,0.87218006,768.01,767.08,0.87699635]
[1754535281144,0.87218006,768.01,767.07,0.87699635]
[1754535281539,0.87218006,768.05,767.04,0.87699635]
[1754535282645,0.87218006,768.05,766.9,1.1630004]
[1754535282646,0.87218006,768.07,767.03,0.87699635]
[1754535282945,0.87218006,768.07,767.02,0.87699635]
[1754535283146,0.87218006,768.1,767.07,0.87699635]
[1754535283346,0.87218006,768.11,767.08,0.87699635]
[1754535283543,0.87218006,768.16,767.13,0.87699635]
[1754535283749,0.87218006,768.18,767.12,0.87699635]
[1754535284045,0.87218006,768.25,767.08,0.87699635]
[1754535284244,0.87218006,768.26,767.09,0.87699635]
[1754535284745,0.87218006,768.29,767.12,0.87699635]
[1754535286049,0.87218006,768.28,767.12,0.87699635]
[1754535286749,0.87218006,768.29,767.12,0.87699635]
[1754535287749,0.87218006,768.35,767.18,0.87699635]
[1754535288448,0.22646961,768.63,767.22,0.87699635]
[1754535288449,0.87218006,768.39,767.22,0.87699635]
[1754535288645,0.87218006,768.41,767.25,0.87699635]
[1754535288946,0.87218006,768.32,767.31,0.87699635]
[1754535289151,0.87218006,768.37,767.35,0.87699635]
[1754535289849,0.87218006,768.38,767.37,0.87699635]
[1754535290749,0.87218006,768.38,767.36,0.87699635]
[1754535290949,0.87218006,768.37,767.35,0.87699635]
[1754535291745,0.87218006,768.38,767.32,0.87699635]
[1754535293352,0.87218006,768.38,767.31,0.87699635]
[1754535294246,0.87218006,768.36,767.3,0.87699635]
[1754535294450,0.87218006,768.35,767.3,0.87699635]
[1754535294750,0.87218006,768.32,767.25,0.87699635]
[1754535294950,0.87218006,768.31,767.25,0.87699635]
[1754535295250,0.87218006,768.27,767.2,0.87699635]
[1754535295550,0.87218006,768.27,767.21,0.87699635]
[1754535296352,0.87218006,768.27,767.2,0.87699635]
[1754535296552,0.87218006,768.27,767.21,0.87699635]
[1754535297352,0.87218006,768.27,767.2,0.87699635]
[1754535297548,0.87218006,768.27,767.22,0.938]
[1754535300854,0.87218006,768.25,767.23,0.87699635]
[1754535301859,0.87218006,768.26,767.24,0.87699635]
[1754535302355,0.87218006,768.26,767.25,0.87699635]
[1754535302960,0.87218006,768.25,767.26,0.87699635]
[1754535303956,0.87218006,768.24,767.26,0.87699635]
[1754535304363,0.87218006,768.23,767.28,0.87699635]
[1754535304956,0.87218006,768.22,767.27,0.87699635]
[1754535305260,0.87218006,768.21,767.29,0.87699635]
[1754535306157,0.87218006,768.2,767.3,0.87699635]
[1754535306556,0.87218006,768.2,767.29,0.87699635]
[1754535307158,0.87218006,768.26,767.25,0.87699635]
[1754535307357,0.87218006,768.26,767.26,0.87699635]
[1754535309361,0.87218006,768.27,767.26,0.87699635]
[1754535309557,0.87218006,768.27,767.25,0.87699635]
[1754535310859,0.87218006,768.27,767.26,0.87699635]
[1754535311261,0.87218006,768.26,767.26,0.87699635]
[1754535312063,0.87218006,768.26,767.27,1.021]
[1754535314365,0.87218006,768.27,767.27,1.021]
[1754535315460,0.87218006,768.32,767.31,0.87699635]
[1754535315864,0.87218006,768.35,767.34,0.87699635]
[1754535316368,0.87218006,768.34,767.35,0.87699635]
[1754535316668,0.87218006,768.31,767.38,0.87699635]
[1754535317568,0.87218006,768.3,767.38,0.87699635]
[1754535318468,0.87218006,768.3,767.39,0.87699635]
[1754535318670,0.87218006,768.31,767.4,0.87699635]
[1754535318865,0.87218006,768.29,767.41,0.87699635]
[1754535319066,0.87218006,768.39,767.35,0.87699635]
[1754535319366,0.87218006,768.43,767.39,0.87699635]
[1754535319665,1.38439161,768.63,767.27,1.021]
[1754535319666,0.87218006,768.44,767.41,0.87699635]
[1754535319872,0.87218006,768.46,767.42,0.87699635]
[1754535320166,0.87218006,768.49,767.45,0.87699635]
[1754535320367,0.87218006,768.49,767.46,0.87699635]
[1754535321372,0.87218006,768.49,767.27,1.021]
[1754535321373,0.87218006,768.48,767.45,0.87699635]
[1754535321669,0.87218006,768.45,767.42,0.87699635]
[1754535323275,0.87218006,768.46,767.42,0.87699635]
[1754535324873,0.87218006,768.37,767.47,0.87699635]
[1754535325078,0.87218006,768.36,767.46,0.87699635]
[1754535325375,0.87218006,768.36,767.45,0.87699635]
[1754535327678,0.87218006,768.37,767.45,0.87699635]
[1754535328479,0.87218006,768.37,767.44,0.87699635]
[1754535330979,0.87218006,768.37,767.45,0.754]
[1754535331678,0.87218006,768.41,767.45,0.754]
[1754535331875,0.87218006,768.36,767.45,0.754]
[1754535332476,0.87218006,768.33,767.45,0.754]
[1754535332681,0.87218006,768.27,767.45,0.754]
[1754535333178,0.87218006,768.26,767.45,0.754]
[1754535333481,0.87218006,768.25,767.45,0.754]
[1754535334577,0.87218006,768.23,767.45,0.754]
[1754535335380,0.87218006,768.22,767.45,0.754]
[1754535335877,0.87218006,768.21,767.45,0.754]
[1754535336083,0.87218006,768.22,767.45,0.754]
[1754535336280,0.87218006,768.21,767.45,0.754]
[1754535336480,0.87218006,768.2,767.45,0.754]
[1754535337382,0.87218006,768.19,767.45,0.754]
[1754535338585,0.87218006,768.18,767.45,0.754]
[1754535339384,0.87218006,768.17,767.45,0.754]
[1754535339790,0.87218006,768.18,767.45,0.754]
[1754535340089,0.22646961,768.63,767.45,0.754]
[1754535340090,0.87218006,768.19,767.45,0.754]
[1754535340492,0.87218006,768.18,767.45,0.754]
[1754535340692,0.87218006,768.16,767.45,0.754]
[1754535341385,0.22646961,768.63,767.45,0.754]
[1754535341386,0.87218006,768.15,767.45,0.754]
[1754535341685,0.87218006,768.14,767.45,0.754]
[1754535342191,1.7368831,768.43,767.45,0.754]
[1754535342192,0.87218006,768.13,767.45,0.754]
[1754535342392,0.87218006,768.12,767.45,0.754]
[1754535343593,0.87218006,768.12,767.45,1.63099635]
[1754535344591,0.87218006,768.11,767.45,1.63099635]
[1754535346195,0.87218006,768.1,767.45,0.754]
[1754535347091,0.87218006,768.08,767.45,0.754]
[1754535348197,0.87218006,768.11,767.45,0.754]
[1754535349394,0.87218006,768.14,767.45,0.754]
[1754535349793,0.87218006,768.13,767.45,0.754]
[1754535350195,0.87218006,768.1,767.45,0.754]